[Event "Late-Titled-Tuesday-Blitz-March-19-2024"]
[Site "Chess.com"]
[Date "2024.03.19"]
[Round "5"]
[White "Burgsvik"]
[Black "miraitrunks"]
[Result "0-1"]
[WhiteElo "2284"]
[BlackElo "2177"]
[TimeControl "180+1"]
[EndTime "14:52:27 PDT"]
[Termination "miraitrunks won by resignation"]

1. e4 {[%clk 0:03:00.9]} 1... c5 {[%clk 0:02:52.1]} 2. Nf3 {[%clk 0:02:59.6]}
2... d6 {[%clk 0:02:52.5]} 3. d4 {[%clk 0:02:59.6]} 3... cxd4 {[%clk 0:02:53.4]}
4. Nxd4 {[%clk 0:03:00]} 4... Nf6 {[%clk 0:02:54.1]} 5. Nc3 {[%clk 0:03:00]}
5... g6 {[%clk 0:02:54.7]} 6. Bc4 {[%clk 0:02:59]} 6... Bg7 {[%clk 0:02:54.9]}
7. Be3 {[%clk 0:02:58.7]} 7... O-O {[%clk 0:02:55.4]} 8. f3 {[%clk 0:02:58.9]}
8... Nc6 {[%clk 0:02:55.6]} 9. Qd2 {[%clk 0:02:58.6]} 9... Nxd4 {[%clk 0:02:56]}
10. Bxd4 {[%clk 0:02:58.4]} 10... Be6 {[%clk 0:02:56.9]} 11. Bxe6 {[%clk
0:02:55.8]} 11... fxe6 {[%clk 0:02:57.8]} 12. O-O-O {[%clk 0:02:53.7]} 12... Qa5
{[%clk 0:02:55.7]} 13. Kb1 {[%clk 0:02:52.1]} 13... Rac8 {[%clk 0:02:34.9]} 14.
Nd5 {[%clk 0:02:43.8]} 14... Qxd2 {[%clk 0:02:34.1]} 15. Nxf6+ {[%clk
0:02:41.3]} 15... Bxf6 {[%clk 0:02:24.6]} 16. Rxd2 {[%clk 0:02:36.3]} 16... Bxd4
{[%clk 0:02:22.6]} 17. Rxd4 {[%clk 0:02:36.2]} 17... Rc5 {[%clk 0:02:16.7]} 18.
Rhd1 {[%clk 0:02:33.4]} 18... Rh5 {[%clk 0:02:10.3]} 19. h3 {[%clk 0:02:32]}
19... Rg5 {[%clk 0:02:10.5]} 20. R1d2 {[%clk 0:02:30]} 20... h5 {[%clk
0:02:10.6]} 21. Rc4 {[%clk 0:02:20.9]} 21... Rxf3 {[%clk 0:02:00.2]} 22. a4
{[%clk 0:02:15.9]} 22... Rfg3 {[%clk 0:01:58.1]} 23. Rc7 {[%clk 0:02:15.1]}
23... Rxg2 {[%clk 0:01:56]} 24. Rd3 {[%clk 0:02:11.6]} 24... R5g3 {[%clk
0:01:54]} 25. Rxe7 {[%clk 0:02:10.6]} 25... Rxd3 {[%clk 0:01:50.6]} 26. cxd3
{[%clk 0:02:10]} 26... Rg3 {[%clk 0:01:46]} 27. Rxe6 {[%clk 0:02:09.9]} 27...
Kf7 {[%clk 0:01:46.5]} 28. Rxd6 {[%clk 0:02:09.4]} 28... Rxh3 {[%clk 0:01:46.5]}
29. e5 {[%clk 0:02:09.3]} 29... Re3 {[%clk 0:01:45.8]} 30. d4 {[%clk 0:02:09]}
30... h4 {[%clk 0:01:46.1]} 31. Rd7+ {[%clk 0:02:09]} 31... Ke6 {[%clk
0:01:44.9]} 32. Rd6+ {[%clk 0:02:08.9]} 32... Kf5 {[%clk 0:01:45]} 33. Rf6+
{[%clk 0:02:06.7]} 33... Kg5 {[%clk 0:01:45.4]} 34. Rf8 {[%clk 0:02:05.5]} 34...
h3 {[%clk 0:01:42.5]} 35. Rh8 {[%clk 0:02:05.1]} 35... Kf5 {[%clk 0:01:43]} 36.
Kc2 {[%clk 0:02:03.4]} 36... Rg3 {[%clk 0:01:40.1]} 37. b4 {[%clk 0:01:58]}
37... g5 {[%clk 0:01:34.4]} 38. Rf8+ {[%clk 0:01:54.2]} 38... Ke6 {[%clk
0:01:34.3]} 39. Rf6+ {[%clk 0:01:54.3]} 39... Kd5 {[%clk 0:01:34.4]} 40. Rd6+
{[%clk 0:01:54]} 40... Kc4 {[%clk 0:01:32.4]} 41. e6 {[%clk 0:01:47.9]} 41...
Rg2+ {[%clk 0:01:32.5]} 42. Kd1 {[%clk 0:01:44]} 42... h2 {[%clk 0:01:32.3]} 0-1

[Event "Late-Titled-Tuesday-Blitz-March-19-2024"]
[Site "Chess.com"]
[Date "2024.03.19"]
[Round "5"]
[White "andjela_djidjika"]
[Black "jaramsdal"]
[Result "0-1"]
[WhiteElo "2141"]
[BlackElo "2274"]
[TimeControl "180+1"]
[EndTime "14:52:39 PDT"]
[Termination "jaramsdal won by resignation"]

1. g3 {[%clk 0:03:00.9]} 1... d5 {[%clk 0:02:57.2]} 2. Bg2 {[%clk 0:02:59.7]}
2... c6 {[%clk 0:02:56.4]} 3. Nf3 {[%clk 0:03:00.2]} 3... Bg4 {[%clk 0:02:56.7]}
4. O-O {[%clk 0:03:00.4]} 4... Nf6 {[%clk 0:02:55.9]} 5. d3 {[%clk 0:03:00.9]}
5... e6 {[%clk 0:02:53.5]} 6. Qe1 {[%clk 0:03:00.7]} 6... Nbd7 {[%clk
0:02:39.4]} 7. e4 {[%clk 0:03:00]} 7... Bd6 {[%clk 0:02:26.4]} 8. e5 {[%clk
0:02:44.7]} 8... Bxf3 {[%clk 0:02:26.1]} 9. exf6 {[%clk 0:02:44.2]} 9... Qxf6
{[%clk 0:02:25.7]} 10. Nc3 {[%clk 0:02:36]} 10... Bxg2 {[%clk 0:02:10]} 11. Kxg2
{[%clk 0:02:35.7]} 11... O-O {[%clk 0:02:03.5]} 12. a3 {[%clk 0:02:25.7]} 12...
e5 {[%clk 0:02:01.7]} 13. b3 {[%clk 0:02:12.3]} 13... Rae8 {[%clk 0:01:59.8]}
14. Bb2 {[%clk 0:02:11.9]} 14... Qg6 {[%clk 0:02:00.4]} 15. Qd2 {[%clk
0:02:10.6]} 15... f5 {[%clk 0:01:55.8]} 16. Rae1 {[%clk 0:02:09.8]} 16... f4
{[%clk 0:01:53.1]} 17. f3 {[%clk 0:02:00.2]} 17... fxg3 {[%clk 0:01:52]} 18.
hxg3 {[%clk 0:02:00.6]} 18... e4 {[%clk 0:01:47.6]} 19. dxe4 {[%clk 0:01:58]}
19... Qxg3+ {[%clk 0:01:44.5]} 20. Kh1 {[%clk 0:01:56.8]} 20... Rf6 {[%clk
0:01:43.1]} 21. Re2 {[%clk 0:01:24.8]} 21... Qh3+ {[%clk 0:01:30.2]} 22. Kg1
{[%clk 0:01:13.8]} 22... Bc5+ {[%clk 0:01:16.5]} 23. Rff2 {[%clk 0:01:08.3]}
23... Rg6+ {[%clk 0:01:15.5]} 0-1

[Event "Late-Titled-Tuesday-Blitz-March-19-2024"]
[Site "Chess.com"]
[Date "2024.03.19"]
[Round "5"]
[White "lluiss"]
[Black "SergioMoralesG"]
[Result "1-0"]
[WhiteElo "2271"]
[BlackElo "2462"]
[TimeControl "180+1"]
[EndTime "14:53:00 PDT"]
[Termination "lluiss won by resignation"]

1. Nf3 {[%clk 0:03:00.9]} 1... c5 {[%clk 0:02:12.9]} 2. c4 {[%clk 0:02:56.6]}
2... Nc6 {[%clk 0:02:12.7]} 3. Nc3 {[%clk 0:02:55.7]} 3... Nf6 {[%clk
0:02:12.9]} 4. d4 {[%clk 0:02:55.2]} 4... cxd4 {[%clk 0:02:10]} 5. Nxd4 {[%clk
0:02:56.1]} 5... e6 {[%clk 0:02:10.9]} 6. a3 {[%clk 0:02:54.8]} 6... a6 {[%clk
0:02:04.5]} 7. g3 {[%clk 0:02:51.5]} 7... Qc7 {[%clk 0:01:57.1]} 8. Bg2 {[%clk
0:02:39.5]} 8... Nxd4 {[%clk 0:01:54]} 9. Qxd4 {[%clk 0:02:38.7]} 9... Bc5
{[%clk 0:01:54.5]} 10. Qf4 {[%clk 0:02:20.8]} 10... Qxf4 {[%clk 0:01:37.7]} 11.
Bxf4 {[%clk 0:02:21.7]} 11... h6 {[%clk 0:01:14.7]} 12. Rd1 {[%clk 0:02:18.4]}
12... Ke7 {[%clk 0:00:50.4]} 13. b4 {[%clk 0:02:08.3]} 13... Ba7 {[%clk
0:00:50.2]} 14. c5 {[%clk 0:02:03.9]} 14... Bb8 {[%clk 0:00:47.6]} 15. Bd6+
{[%clk 0:01:37.3]} 15... Kd8 {[%clk 0:00:47.4]} 16. O-O {[%clk 0:01:31.8]} 16...
Ne8 {[%clk 0:00:46.9]} 17. Ne4 {[%clk 0:01:22.4]} 17... f5 {[%clk 0:00:45.8]}
18. Bxb8 {[%clk 0:01:21.9]} 18... Rxb8 {[%clk 0:00:43.6]} 19. Nd6 {[%clk
0:01:22]} 19... b6 {[%clk 0:00:36.6]} 20. Nf7+ {[%clk 0:01:19.3]} 1-0

[Event "Late-Titled-Tuesday-Blitz-March-19-2024"]
[Site "Chess.com"]
[Date "2024.03.19"]
[Round "5"]
[White "thesupera12"]
[Black "Navyblue1"]
[Result "1-0"]
[WhiteElo "2439"]
[BlackElo "2214"]
[TimeControl "180+1"]
[EndTime "14:53:12 PDT"]
[Termination "thesupera12 won by resignation"]

1. c4 {[%clk 0:02:58.7]} 1... c5 {[%clk 0:02:49.3]} 2. g3 {[%clk 0:02:58.4]}
2... Nf6 {[%clk 0:02:48.8]} 3. Bg2 {[%clk 0:02:57.9]} 3... d5 {[%clk 0:02:44.7]}
4. cxd5 {[%clk 0:02:56.9]} 4... Nxd5 {[%clk 0:02:44.4]} 5. Nc3 {[%clk
0:02:53.8]} 5... Nb6 {[%clk 0:02:43.7]} 6. Nf3 {[%clk 0:02:53.1]} 6... Nc6
{[%clk 0:02:42.6]} 7. O-O {[%clk 0:02:51.3]} 7... g6 {[%clk 0:02:39.7]} 8. b3
{[%clk 0:02:50.1]} 8... Bg7 {[%clk 0:02:39.9]} 9. Bb2 {[%clk 0:02:50.7]} 9...
O-O {[%clk 0:02:39.4]} 10. Rc1 {[%clk 0:02:51.4]} 10... Nd4 {[%clk 0:02:30.5]}
11. Nxd4 {[%clk 0:02:50.6]} 11... cxd4 {[%clk 0:02:28.4]} 12. Nb5 {[%clk
0:02:49.5]} 12... a6 {[%clk 0:02:06.9]} 13. Na3 {[%clk 0:02:47.8]} 13... Rb8
{[%clk 0:02:03.7]} 14. Nc4 {[%clk 0:02:46.4]} 14... Nxc4 {[%clk 0:02:02.8]} 15.
Rxc4 {[%clk 0:02:47.3]} 15... Be6 {[%clk 0:02:01.8]} 16. Rc5 {[%clk 0:02:44.7]}
16... b6 {[%clk 0:01:56.2]} 17. Rc6 {[%clk 0:02:42.5]} 17... Bd5 {[%clk
0:01:53.8]} 18. Bxd5 {[%clk 0:02:42.1]} 18... Qxd5 {[%clk 0:01:54.4]} 19. Rc7
{[%clk 0:02:39.1]} 19... Qd6 {[%clk 0:01:51]} 20. Qc1 {[%clk 0:02:33.9]} 20...
Rfd8 {[%clk 0:01:44.6]} 21. d3 {[%clk 0:02:33.6]} 21... h5 {[%clk 0:01:41.4]}
22. Qc6 {[%clk 0:02:26.6]} 22... Qxc6 {[%clk 0:01:36.7]} 23. Rxc6 {[%clk
0:02:26.5]} 23... Rdc8 {[%clk 0:01:18.3]} 24. Rfc1 {[%clk 0:02:25.8]} 24... Rxc6
{[%clk 0:01:18.3]} 25. Rxc6 {[%clk 0:02:26.7]} 25... Rb7 {[%clk 0:01:15.9]} 26.
Kg2 {[%clk 0:02:17.3]} 26... Be5 {[%clk 0:01:10.5]} 27. f4 {[%clk 0:02:14.4]}
27... Bf6 {[%clk 0:01:09.9]} 28. Kf3 {[%clk 0:02:11.5]} 28... a5 {[%clk
0:01:05.5]} 29. Ke4 {[%clk 0:02:04]} 29... b5 {[%clk 0:01:05.2]} 30. Bxd4 {[%clk
0:02:03.4]} 30... Bxd4 {[%clk 0:01:04.7]} 31. Kxd4 {[%clk 0:02:04.3]} 31... a4
{[%clk 0:01:03.7]} 32. Kc5 {[%clk 0:02:04.2]} 32... axb3 {[%clk 0:00:57.1]} 33.
axb3 {[%clk 0:02:05.1]} 33... b4 {[%clk 0:00:53.8]} 34. Rb6 {[%clk 0:02:03.6]}
34... Ra7 {[%clk 0:00:54]} 35. Rxb4 {[%clk 0:02:03.2]} 35... Ra2 {[%clk
0:00:54.4]} 36. Re4 {[%clk 0:02:03.6]} 36... e6 {[%clk 0:00:53.2]} 37. b4 {[%clk
0:02:03.7]} 37... Kf8 {[%clk 0:00:53.8]} 38. b5 {[%clk 0:02:02.8]} 38... Ke7
{[%clk 0:00:54.4]} 39. Kc6 {[%clk 0:01:58.4]} 39... Rc2+ {[%clk 0:00:51.1]} 40.
Kb7 {[%clk 0:01:58.2]} 40... Kd7 {[%clk 0:00:50.2]} 41. b6 {[%clk 0:01:57.7]}
41... Rb2 {[%clk 0:00:46.8]} 42. Rd4+ {[%clk 0:01:57.3]} 42... Ke8 {[%clk
0:00:42]} 43. Kc7 {[%clk 0:01:57]} 43... Rc2+ {[%clk 0:00:41.8]} 44. Rc4 {[%clk
0:01:56.6]} 1-0

[Event "Late-Titled-Tuesday-Blitz-March-19-2024"]
[Site "Chess.com"]
[Date "2024.03.19"]
[Round "5"]
[White "djano"]
[Black "Aram7Adam"]
[Result "1-0"]
[WhiteElo "2626"]
[BlackElo "2451"]
[TimeControl "180+1"]
[EndTime "14:53:21 PDT"]
[Termination "djano won by resignation"]

1. e4 {[%clk 0:03:00.9]} 1... c5 {[%clk 0:02:59.9]} 2. Nc3 {[%clk 0:03:00]} 2...
Nc6 {[%clk 0:02:59.4]} 3. Bb5 {[%clk 0:02:59.4]} 3... e6 {[%clk 0:02:58.7]} 4.
Nf3 {[%clk 0:02:54.7]} 4... Nge7 {[%clk 0:02:58.1]} 5. O-O {[%clk 0:02:47]} 5...
a6 {[%clk 0:02:57]} 6. Bxc6 {[%clk 0:02:47]} 6... Nxc6 {[%clk 0:02:56.8]} 7. d4
{[%clk 0:02:47.9]} 7... cxd4 {[%clk 0:02:53.6]} 8. Nxd4 {[%clk 0:02:48.8]} 8...
Be7 {[%clk 0:02:52.5]} 9. Nxc6 {[%clk 0:02:45.3]} 9... bxc6 {[%clk 0:02:50.3]}
10. e5 {[%clk 0:02:41.6]} 10... O-O {[%clk 0:02:49]} 11. Qg4 {[%clk 0:02:40.8]}
11... Qc7 {[%clk 0:01:53.6]} 12. Qg3 {[%clk 0:02:33.8]} 12... Kh8 {[%clk
0:01:44.7]} 13. Ne4 {[%clk 0:02:32.2]} 13... Bb7 {[%clk 0:01:27.5]} 14. Rd1
{[%clk 0:02:08.5]} 14... Rad8 {[%clk 0:00:57.2]} 15. Bg5 {[%clk 0:02:08.4]}
15... Bxg5 {[%clk 0:00:52.5]} 16. Qxg5 {[%clk 0:02:09.3]} 16... h6 {[%clk
0:00:47.5]} 17. Qg3 {[%clk 0:02:02.2]} 17... f5 {[%clk 0:00:43.1]} 18. Nd6
{[%clk 0:02:00.5]} 18... c5 {[%clk 0:00:41.5]} 19. c4 {[%clk 0:01:58.5]} 19...
Kh7 {[%clk 0:00:36.2]} 20. h4 {[%clk 0:01:57.5]} 20... f4 {[%clk 0:00:34.9]} 21.
Qd3+ {[%clk 0:01:55.3]} 21... Kg8 {[%clk 0:00:32.8]} 22. Qg6 {[%clk 0:01:52.4]}
22... Qc6 {[%clk 0:00:27.5]} 23. Rd3 {[%clk 0:01:50.1]} 23... Ba8 {[%clk
0:00:26.1]} 24. Rad1 {[%clk 0:01:49.2]} 24... Rb8 {[%clk 0:00:23.7]} 25. b3
{[%clk 0:01:48]} 25... a5 {[%clk 0:00:22.9]} 26. f3 {[%clk 0:01:39.3]} 26... a4
{[%clk 0:00:20.6]} 27. Ne4 {[%clk 0:01:39.8]} 27... axb3 {[%clk 0:00:19.9]} 28.
Nf6+ {[%clk 0:01:39.6]} 28... Rxf6 {[%clk 0:00:16.1]} 29. exf6 {[%clk
0:01:40.5]} 1-0

[Event "Late-Titled-Tuesday-Blitz-March-19-2024"]
[Site "Chess.com"]
[Date "2024.03.19"]
[Round "5"]
[White "Heydarli77"]
[Black "GoltsevDmitry2000"]
[Result "1/2-1/2"]
[WhiteElo "2388"]
[BlackElo "2750"]
[TimeControl "180+1"]
[EndTime "14:53:25 PDT"]
[Termination "Game drawn by repetition"]

1. d4 {[%clk 0:03:00.9]} 1... e6 {[%clk 0:02:59.6]} 2. c4 {[%clk 0:02:59.9]}
2... Nf6 {[%clk 0:02:59.1]} 3. Nc3 {[%clk 0:02:57.7]} 3... d5 {[%clk 0:02:58.6]}
4. Bg5 {[%clk 0:02:56.5]} 4... c6 {[%clk 0:02:58.4]} 5. e3 {[%clk 0:02:53.4]}
5... h6 {[%clk 0:02:58.7]} 6. Bh4 {[%clk 0:02:49.2]} 6... g5 {[%clk 0:02:57.5]}
7. Bg3 {[%clk 0:02:48.9]} 7... Bb4 {[%clk 0:02:58.1]} 8. Qc2 {[%clk 0:02:45.9]}
8... Ne4 {[%clk 0:02:56.9]} 9. Bd3 {[%clk 0:02:42.1]} 9... Nxg3 {[%clk
0:02:52.1]} 10. hxg3 {[%clk 0:02:41.3]} 10... Nd7 {[%clk 0:02:52.3]} 11. Ne2
{[%clk 0:02:40.2]} 11... f5 {[%clk 0:02:48.2]} 12. a3 {[%clk 0:02:34.4]} 12...
Bd6 {[%clk 0:02:44]} 13. cxd5 {[%clk 0:02:32]} 13... cxd5 {[%clk 0:02:42.9]} 14.
Nb5 {[%clk 0:02:30.6]} 14... Nf6 {[%clk 0:02:37.3]} 15. Nxd6+ {[%clk 0:02:25.6]}
15... Qxd6 {[%clk 0:02:38.2]} 16. Nc3 {[%clk 0:02:18]} 16... Bd7 {[%clk
0:02:34.8]} 17. Nb5 {[%clk 0:02:03.6]} 17... Bxb5 {[%clk 0:02:34]} 18. Bxb5+
{[%clk 0:02:03.6]} 18... Ke7 {[%clk 0:02:32.2]} 19. Rc1 {[%clk 0:02:00]} 19...
a6 {[%clk 0:02:28.5]} 20. Bd3 {[%clk 0:01:59]} 20... Qd7 {[%clk 0:02:19.3]} 21.
Qc5+ {[%clk 0:01:57.7]} 21... Kf7 {[%clk 0:02:18.9]} 22. Qc7 {[%clk 0:01:57.5]}
22... Rac8 {[%clk 0:02:14]} 23. Qxd7+ {[%clk 0:01:57.4]} 23... Nxd7 {[%clk
0:02:14.9]} 24. Kd2 {[%clk 0:01:57.8]} 24... Kg7 {[%clk 0:02:11.2]} 25. Rc2
{[%clk 0:01:51.6]} 25... Nb6 {[%clk 0:02:09.8]} 26. Rhc1 {[%clk 0:01:50.5]}
26... Rxc2+ {[%clk 0:02:09.9]} 27. Rxc2 {[%clk 0:01:50.5]} 27... Rc8 {[%clk
0:02:10.8]} 28. Rc3 {[%clk 0:01:47.7]} 28... Rxc3 {[%clk 0:01:54.7]} 29. Kxc3
{[%clk 0:01:47.9]} 29... Kf6 {[%clk 0:01:55.6]} 30. Kb4 {[%clk 0:01:47.2]} 30...
Ke7 {[%clk 0:01:56.2]} 31. Ka5 {[%clk 0:01:45.3]} 31... Nc8 {[%clk 0:01:50.6]}
32. b4 {[%clk 0:01:38]} 32... Kd6 {[%clk 0:01:49.9]} 33. b5 {[%clk 0:01:34.1]}
33... axb5 {[%clk 0:01:50.8]} 34. Kxb5 {[%clk 0:01:33.9]} 34... Kc7 {[%clk
0:01:49.2]} 35. a4 {[%clk 0:01:33.3]} 35... Nd6+ {[%clk 0:01:48.8]} 36. Kc5
{[%clk 0:01:33]} 36... b6+ {[%clk 0:01:48.7]} 37. Kb4 {[%clk 0:01:32.8]} 37...
Ne8 {[%clk 0:01:48.4]} 38. Bb5 {[%clk 0:01:32.2]} 38... Nf6 {[%clk 0:01:48.3]}
39. f3 {[%clk 0:01:18.7]} 39... Nh5 {[%clk 0:01:48.2]} 40. g4 {[%clk 0:01:18.5]}
40... fxg4 {[%clk 0:01:49.1]} 41. fxg4 {[%clk 0:01:18.9]} 41... Nf6 {[%clk
0:01:47.6]} 42. Be2 {[%clk 0:01:18.1]} 42... Ne4 {[%clk 0:01:45.8]} 43. Bd3
{[%clk 0:01:15.9]} 43... Nf2 {[%clk 0:01:42.7]} 44. Be2 {[%clk 0:01:15.6]} 44...
Ne4 {[%clk 0:01:31.2]} 45. Bf3 {[%clk 0:01:12.8]} 45... Nf6 {[%clk 0:01:28.3]}
46. Be2 {[%clk 0:01:11.2]} 46... Ne4 {[%clk 0:01:25.2]} 1/2-1/2

[Event "Late-Titled-Tuesday-Blitz-March-19-2024"]
[Site "Chess.com"]
[Date "2024.03.19"]
[Round "5"]
[White "SuanFernandes"]
[Black "Lion-Al-Messi"]
[Result "0-1"]
[WhiteElo "2322"]
[BlackElo "2579"]
[TimeControl "180+1"]
[EndTime "14:53:28 PDT"]
[Termination "Lion-Al-Messi won by checkmate"]

1. d4 {[%clk 0:03:00.9]} 1... Nf6 {[%clk 0:02:59.1]} 2. c4 {[%clk 0:02:57.4]}
2... b6 {[%clk 0:02:59.4]} 3. Nf3 {[%clk 0:02:53.2]} 3... Bb7 {[%clk 0:02:58.6]}
4. e3 {[%clk 0:02:49.9]} 4... e6 {[%clk 0:02:58.5]} 5. Be2 {[%clk 0:02:50.5]}
5... Be7 {[%clk 0:02:58.5]} 6. O-O {[%clk 0:02:50.9]} 6... O-O {[%clk
0:02:58.5]} 7. Nbd2 {[%clk 0:02:49.5]} 7... c5 {[%clk 0:02:58.6]} 8. b3 {[%clk
0:02:48]} 8... cxd4 {[%clk 0:02:57.4]} 9. Nxd4 {[%clk 0:02:45]} 9... Nc6 {[%clk
0:02:55.5]} 10. Bb2 {[%clk 0:02:44.6]} 10... Nxd4 {[%clk 0:02:55.3]} 11. Bxd4
{[%clk 0:02:44.3]} 11... d5 {[%clk 0:02:54.7]} 12. Bf3 {[%clk 0:02:39.6]} 12...
Qd7 {[%clk 0:02:53.5]} 13. Rc1 {[%clk 0:02:33.4]} 13... dxc4 {[%clk 0:02:53.2]}
14. Bxb7 {[%clk 0:02:32.8]} 14... Qxb7 {[%clk 0:02:53.1]} 15. Nxc4 {[%clk
0:02:33.2]} 15... Rac8 {[%clk 0:02:52.7]} 16. Qe2 {[%clk 0:02:21.1]} 16... Rfd8
{[%clk 0:02:50.7]} 17. Rfd1 {[%clk 0:02:18.9]} 17... Nd5 {[%clk 0:02:34.6]} 18.
Qg4 {[%clk 0:02:14.2]} 18... Bf6 {[%clk 0:02:34.5]} 19. Bxf6 {[%clk 0:02:00.9]}
19... Nxf6 {[%clk 0:02:34.3]} 20. Qh4 {[%clk 0:01:50.1]} 20... h6 {[%clk
0:02:30.4]} 21. Qf4 {[%clk 0:01:40.7]} 21... Nd5 {[%clk 0:02:25.5]} 22. Qe5
{[%clk 0:01:38.8]} 22... b5 {[%clk 0:02:17.1]} 23. Nb2 {[%clk 0:00:12.9]} 23...
b4 {[%clk 0:02:13.9]} 24. Nc4 {[%clk 0:00:12.1]} 24... Qe7 {[%clk 0:01:54.1]}
25. Rd3 {[%clk 0:00:08.8]} 25... Nc3 {[%clk 0:01:51.9]} 26. Rxd8+ {[%clk
0:00:08.1]} 26... Rxd8 {[%clk 0:01:52.8]} 27. Re1 {[%clk 0:00:07.6]} 27... Qd7
{[%clk 0:01:46.4]} 28. a3 {[%clk 0:00:05.1]} 28... Qd1 {[%clk 0:01:44.6]} 29.
Kf1 {[%clk 0:00:03.9]} 29... Qxe1+ {[%clk 0:01:43.1]} 30. Kxe1 {[%clk
0:00:04.8]} 30... Rd1# {[%clk 0:01:43.3]} 0-1

[Event "Late-Titled-Tuesday-Blitz-March-19-2024"]
[Site "Chess.com"]
[Date "2024.03.19"]
[Round "5"]
[White "NoSpaghettiForYou"]
[Black "teresin05"]
[Result "1-0"]
[WhiteElo "2428"]
[BlackElo "2180"]
[TimeControl "180+1"]
[EndTime "14:53:30 PDT"]
[Termination "NoSpaghettiForYou won by resignation"]

1. Nf3 {[%clk 0:03:00.9]} 1... d5 {[%clk 0:02:36.4]} 2. e3 {[%clk 0:03:00.3]}
2... Nf6 {[%clk 0:02:30.7]} 3. b3 {[%clk 0:03:00.4]} 3... c5 {[%clk 0:02:07.6]}
4. Bb2 {[%clk 0:02:59.5]} 4... Nc6 {[%clk 0:01:39.6]} 5. Bb5 {[%clk 0:02:59.3]}
5... Bd7 {[%clk 0:01:35.6]} 6. O-O {[%clk 0:02:51.2]} 6... e6 {[%clk 0:01:31]}
7. c4 {[%clk 0:02:49.7]} 7... a6 {[%clk 0:01:28.1]} 8. Bxc6 {[%clk 0:02:49.5]}
8... Bxc6 {[%clk 0:01:29]} 9. Ne5 {[%clk 0:02:50]} 9... Qc7 {[%clk 0:01:27.2]}
10. d3 {[%clk 0:02:44.1]} 10... Bd6 {[%clk 0:01:23.2]} 11. f4 {[%clk 0:02:41.9]}
11... Nd7 {[%clk 0:01:21.5]} 12. Nxc6 {[%clk 0:02:41.4]} 12... Qxc6 {[%clk
0:01:20.3]} 13. Nc3 {[%clk 0:02:28.6]} 13... O-O {[%clk 0:01:18.7]} 14. Qf3
{[%clk 0:02:26.5]} 14... Nf6 {[%clk 0:01:16.2]} 15. e4 {[%clk 0:02:24.1]} 15...
dxe4 {[%clk 0:01:15.5]} 16. dxe4 {[%clk 0:02:24]} 16... e5 {[%clk 0:01:13.4]}
17. f5 {[%clk 0:02:22]} 17... Rad8 {[%clk 0:01:11.2]} 18. g4 {[%clk 0:02:20.8]}
18... b5 {[%clk 0:01:04.8]} 19. g5 {[%clk 0:02:20.3]} 19... Nd7 {[%clk
0:01:05.2]} 20. Nd5 {[%clk 0:02:11.7]} 20... bxc4 {[%clk 0:01:03]} 21. bxc4
{[%clk 0:02:11.1]} 21... f6 {[%clk 0:01:03.4]} 22. gxf6 {[%clk 0:02:06.5]} 22...
Nxf6 {[%clk 0:01:04.3]} 23. Rad1 {[%clk 0:02:02.6]} 23... Qa4 {[%clk 0:01:00.2]}
24. Nxf6+ {[%clk 0:01:57]} 24... Rxf6 {[%clk 0:00:59.1]} 25. Bxe5 {[%clk
0:01:55.9]} 25... Rh6 {[%clk 0:00:56.5]} 26. Bf4 {[%clk 0:01:49.7]} 26... Qxc4
{[%clk 0:00:29.8]} 27. Bxh6 {[%clk 0:01:45.4]} 27... gxh6 {[%clk 0:00:30.7]} 28.
e5 {[%clk 0:01:42.7]} 28... Be7 {[%clk 0:00:30.7]} 29. f6 {[%clk 0:01:38.1]}
29... Rxd1 {[%clk 0:00:28.1]} 30. Rxd1 {[%clk 0:01:38.6]} 30... Bf8 {[%clk
0:00:25.4]} 31. Qb3 {[%clk 0:01:32]} 31... Qxb3 {[%clk 0:00:23.6]} 32. axb3
{[%clk 0:01:32.9]} 32... Kf7 {[%clk 0:00:24.1]} 33. Rd8 {[%clk 0:01:28.5]} 33...
Ke6 {[%clk 0:00:24.3]} 34. Rxf8 {[%clk 0:01:28.5]} 1-0

[Event "Late-Titled-Tuesday-Blitz-March-19-2024"]
[Site "Chess.com"]
[Date "2024.03.19"]
[Round "5"]
[White "balack95"]
[Black "Longstom"]
[Result "1-0"]
[WhiteElo "2461"]
[BlackElo "2233"]
[TimeControl "180+1"]
[EndTime "14:53:31 PDT"]
[Termination "balack95 won on time"]

1. Nf3 {[%clk 0:03:00.9]} 1... c6 {[%clk 0:02:42.7]} 2. b3 {[%clk 0:02:57.9]}
2... d5 {[%clk 0:02:26.3]} 3. Bb2 {[%clk 0:02:58.8]} 3... e5 {[%clk 0:02:25.4]}
4. Bxe5 {[%clk 0:02:55.8]} 4... Nf6 {[%clk 0:02:26.3]} 5. g3 {[%clk 0:02:55.5]}
5... Be7 {[%clk 0:02:26.1]} 6. Bg2 {[%clk 0:02:56]} 6... O-O {[%clk 0:02:26.8]}
7. O-O {[%clk 0:02:56.4]} 7... Nbd7 {[%clk 0:02:27.7]} 8. Bb2 {[%clk 0:02:56.5]}
8... Re8 {[%clk 0:02:28.3]} 9. d3 {[%clk 0:02:51.1]} 9... Nf8 {[%clk 0:02:28.9]}
10. Nbd2 {[%clk 0:02:50.4]} 10... Ng6 {[%clk 0:02:29.8]} 11. e4 {[%clk
0:02:50.1]} 11... dxe4 {[%clk 0:02:30.5]} 12. Nxe4 {[%clk 0:02:49.5]} 12... Bg4
{[%clk 0:02:31.3]} 13. h3 {[%clk 0:02:45.2]} 13... Nxe4 {[%clk 0:02:29.3]} 14.
dxe4 {[%clk 0:02:41.9]} 14... Bxf3 {[%clk 0:02:29.4]} 15. Bxf3 {[%clk
0:02:39.8]} 15... Qc8 {[%clk 0:02:21.4]} 16. Bg2 {[%clk 0:02:39.7]} 16... Qe6
{[%clk 0:02:17.8]} 17. Qg4 {[%clk 0:02:32.8]} 17... Bf6 {[%clk 0:02:13.6]} 18.
Qxe6 {[%clk 0:02:31.3]} 18... Rxe6 {[%clk 0:02:14.5]} 19. Bxf6 {[%clk
0:02:30.7]} 19... Rxf6 {[%clk 0:02:13.9]} 20. f4 {[%clk 0:02:30]} 20... Rd6
{[%clk 0:02:13.4]} 21. Rfd1 {[%clk 0:02:29.4]} 21... Rad8 {[%clk 0:02:13.3]} 22.
Bf3 {[%clk 0:02:29.6]} 22... Kf8 {[%clk 0:02:11.9]} 23. Kf1 {[%clk 0:02:29]}
23... Ke7 {[%clk 0:02:07.9]} 24. Rxd6 {[%clk 0:02:27.3]} 24... Rxd6 {[%clk
0:02:08.5]} 25. Ke2 {[%clk 0:02:27.8]} 25... Nf8 {[%clk 0:02:07.6]} 26. c3
{[%clk 0:02:25.7]} 26... Ne6 {[%clk 0:02:07.4]} 27. Rd1 {[%clk 0:02:25.3]} 27...
Nc5 {[%clk 0:02:00.3]} 28. Rxd6 {[%clk 0:02:22]} 28... Kxd6 {[%clk 0:02:01.2]}
29. Ke3 {[%clk 0:02:21.9]} 29... a5 {[%clk 0:02:00.6]} 30. Bd1 {[%clk
0:02:20.9]} 30... a4 {[%clk 0:01:58]} 31. b4 {[%clk 0:02:20]} 31... Nb3 {[%clk
0:01:49.2]} 32. Bxb3 {[%clk 0:02:19.7]} 32... axb3 {[%clk 0:01:49.2]} 33. axb3
{[%clk 0:02:20.6]} 33... b6 {[%clk 0:01:45.5]} 34. Kd4 {[%clk 0:02:19.1]} 34...
f6 {[%clk 0:01:44.5]} 35. e5+ {[%clk 0:02:16.7]} 35... Ke6 {[%clk 0:01:44.6]}
36. exf6 {[%clk 0:02:15.8]} 36... Kxf6 {[%clk 0:01:43.4]} 37. b5 {[%clk
0:02:15.5]} 37... cxb5 {[%clk 0:01:37.2]} 38. Kd5 {[%clk 0:02:15.5]} 38... Kf5
{[%clk 0:01:37.8]} 39. Kc6 {[%clk 0:02:12.2]} 39... Ke4 {[%clk 0:01:38.4]} 40.
Kxb5 {[%clk 0:02:12.1]} 40... Kd3 {[%clk 0:01:37.6]} 41. c4 {[%clk 0:02:11.7]}
1-0